{"text_format":"3","workbook":"xlsx","n_sheets":2,"sheets":["Tus gastos","Informe"],"not_rendered":{"charts":2,"images":1,"defined_names":6},"read":"whole","date_system":"1900"}

{"sheet":"Tus gastos","index":0,"n_rows":26,"n_cols":8,"rows_kept":26,"merged":[[1,1,1,7]]}
[]
[null,"Crea tu Presupuesto de comida. Revisa las sugerencias en las celdas del encabezado de tabla siguiente.\nPuedes crear informes en la hoja de cálculo Informe."]
[null,"Fecha","Categoría","Qué","Cuántos","Precio \npor elemento","Precio \n(suma)","Dónde"]
[null,{"$f":"TODAY()","v":"2019-03-14"},"Golosinas","Dulces",{"v":0.25,"d":"0.3"},{"v":6,"d":"$6.00"},{"$f":"Gastos_Mensuales[[#This Row],[Precio \npor elemento]]*Gastos_Mensuales[[#This Row],[Cuántos]]","v":{"v":1.5,"d":"$1.50"}},"Mercado"]
[null,{"$f":"TODAY()","v":"2019-03-14"},"Bebidas","Coca",{"v":1,"d":"1.0"},{"v":1,"d":"$1.00"},{"$f":"Gastos_Mensuales[[#This Row],[Precio \npor elemento]]*Gastos_Mensuales[[#This Row],[Cuántos]]","v":{"v":1,"d":"$1.00"}},"Comida rápida"]
[null,{"$f":"TODAY()-1","v":"2019-03-13"},"Comidas preparadas","Comidas",{"v":1,"d":"1.0"},{"v":28,"d":"$28.00"},{"$f":"Gastos_Mensuales[[#This Row],[Precio \npor elemento]]*Gastos_Mensuales[[#This Row],[Cuántos]]","v":{"v":28,"d":"$28.00"}},"Comida rápida"]
[null,{"$f":"TODAY()-1","v":"2019-03-13"},"Carne","Ternera",1.2,{"v":15,"d":"$15.00"},{"$f":"Gastos_Mensuales[[#This Row],[Precio \npor elemento]]*Gastos_Mensuales[[#This Row],[Cuántos]]","v":{"v":18,"d":"$18.00"}},"Mercado"]
[null,{"$f":"TODAY()-1","v":"2019-03-13"},"Alcohol","Whisky",{"v":1,"d":"1.0"},{"v":25,"d":"$25.00"},{"$f":"Gastos_Mensuales[[#This Row],[Precio \npor elemento]]*Gastos_Mensuales[[#This Row],[Cuántos]]","v":{"v":25,"d":"$25.00"}},"Mercado"]
[null,{"$f":"TODAY()-2","v":"2019-03-12"},"Bebidas","Refresco",{"v":6,"d":"6.0"},{"v":1,"d":"$1.00"},{"$f":"Gastos_Mensuales[[#This Row],[Precio \npor elemento]]*Gastos_Mensuales[[#This Row],[Cuántos]]","v":{"v":6,"d":"$6.00"}},"Entrega a domicilio"]
[null,{"$f":"TODAY()-2","v":"2019-03-12"},"Comidas preparadas","Comidas",{"v":1,"d":"1.0"},{"v":10,"d":"$10.00"},{"$f":"Gastos_Mensuales[[#This Row],[Precio \npor elemento]]*Gastos_Mensuales[[#This Row],[Cuántos]]","v":{"v":10,"d":"$10.00"}},"Entrega a domicilio"]
[null,{"$f":"TODAY()-2","v":"2019-03-12"},"Frutas y verduras","Manzanas",{"v":2,"d":"2.0"},{"v":5,"d":"$5.00"},{"$f":"Gastos_Mensuales[[#This Row],[Precio \npor elemento]]*Gastos_Mensuales[[#This Row],[Cuántos]]","v":{"v":10,"d":"$10.00"}},"Entrega a domicilio"]
[null,{"$f":"TODAY()-2","v":"2019-03-12"},"Bebidas","Agua",{"v":1,"d":"1.0"},{"v":1,"d":"$1.00"},{"$f":"Gastos_Mensuales[[#This Row],[Precio \npor elemento]]*Gastos_Mensuales[[#This Row],[Cuántos]]","v":{"v":1,"d":"$1.00"}},"Mercado"]
[null,{"$f":"TODAY()-3","v":"2019-03-11"},"Bebidas","Coca",{"v":1,"d":"1.0"},{"v":1,"d":"$1.00"},{"$f":"Gastos_Mensuales[[#This Row],[Precio \npor elemento]]*Gastos_Mensuales[[#This Row],[Cuántos]]","v":{"v":1,"d":"$1.00"}},"Comida rápida"]
[null,{"$f":"TODAY()-3","v":"2019-03-11"},"Golosinas","Chocolate",{"v":2,"d":"2.0"},{"v":3,"d":"$3.00"},{"$f":"Gastos_Mensuales[[#This Row],[Precio \npor elemento]]*Gastos_Mensuales[[#This Row],[Cuántos]]","v":{"v":6,"d":"$6.00"}},"Mercado"]
[null,{"$f":"TODAY()-3","v":"2019-03-11"},"Golosinas","Dulces",{"v":5,"d":"5.0"},{"v":1,"d":"$1.00"},{"$f":"Gastos_Mensuales[[#This Row],[Precio \npor elemento]]*Gastos_Mensuales[[#This Row],[Cuántos]]","v":{"v":5,"d":"$5.00"}},"Mercado"]
[null,{"$f":"TODAY()-3","v":"2019-03-11"},"Bebidas","Agua",{"v":2,"d":"2.0"},{"v":0.75,"d":"$0.75"},{"$f":"Gastos_Mensuales[[#This Row],[Precio \npor elemento]]*Gastos_Mensuales[[#This Row],[Cuántos]]","v":{"v":1.5,"d":"$1.50"}},"Cafeterías"]
[null,{"$f":"TODAY()-4","v":"2019-03-10"},"Comidas preparadas","Arroz",{"v":1,"d":"1.0"},{"v":3.25,"d":"$3.25"},{"$f":"Gastos_Mensuales[[#This Row],[Precio \npor elemento]]*Gastos_Mensuales[[#This Row],[Cuántos]]","v":{"v":3.25,"d":"$3.25"}},"Restaurante"]
[null,{"$f":"TODAY()-4","v":"2019-03-10"},"Carne","Ternera",0.6,{"v":12,"d":"$12.00"},{"$f":"Gastos_Mensuales[[#This Row],[Precio \npor elemento]]*Gastos_Mensuales[[#This Row],[Cuántos]]","v":{"v":7.199999999999999,"d":"$7.20"}},"Mercado"]
[null,{"$f":"TODAY()-4","v":"2019-03-10"},"Alcohol","Cerveza",{"v":1,"d":"1.0"},{"v":2,"d":"$2.00"},{"$f":"Gastos_Mensuales[[#This Row],[Precio \npor elemento]]*Gastos_Mensuales[[#This Row],[Cuántos]]","v":{"v":2,"d":"$2.00"}},"Restaurante"]
[null,{"$f":"TODAY()-4","v":"2019-03-10"},"Bebidas","Refresco",{"v":1,"d":"1.0"},{"v":1,"d":"$1.00"},{"$f":"Gastos_Mensuales[[#This Row],[Precio \npor elemento]]*Gastos_Mensuales[[#This Row],[Cuántos]]","v":{"v":1,"d":"$1.00"}},"Mercado"]
[null,{"$f":"TODAY()-5","v":"2019-03-09"},"Comidas preparadas","Comidas",{"v":1,"d":"1.0"},{"v":10,"d":"$10.00"},{"$f":"Gastos_Mensuales[[#This Row],[Precio \npor elemento]]*Gastos_Mensuales[[#This Row],[Cuántos]]","v":{"v":10,"d":"$10.00"}},"Comida rápida"]
[null,{"$f":"TODAY()-5","v":"2019-03-09"},"Frutas y verduras","Plátanos",{"v":2,"d":"2.0"},{"v":3,"d":"$3.00"},{"$f":"Gastos_Mensuales[[#This Row],[Precio \npor elemento]]*Gastos_Mensuales[[#This Row],[Cuántos]]","v":{"v":6,"d":"$6.00"}},"Entrega a domicilio"]
[null,{"$f":"TODAY()-5","v":"2019-03-09"},"Bebidas","Coca",{"v":1,"d":"1.0"},{"v":0.75,"d":"$0.75"},{"$f":"Gastos_Mensuales[[#This Row],[Precio \npor elemento]]*Gastos_Mensuales[[#This Row],[Cuántos]]","v":{"v":0.75,"d":"$0.75"}},"Mercado"]
[null,{"$f":"TODAY()-5","v":"2019-03-09"},"Alcohol","Cerveza",{"v":1,"d":"1.0"},{"v":1,"d":"$1.00"},{"$f":"Gastos_Mensuales[[#This Row],[Precio \npor elemento]]*Gastos_Mensuales[[#This Row],[Cuántos]]","v":{"v":1,"d":"$1.00"}},"Cafeterías"]
[null,{"$f":"TODAY()-5","v":"2019-03-09"},"Pan","Panecillos",{"v":5,"d":"5.0"},{"v":0.2,"d":"$0.20"},{"$f":"Gastos_Mensuales[[#This Row],[Precio \npor elemento]]*Gastos_Mensuales[[#This Row],[Cuántos]]","v":{"v":1,"d":"$1.00"}},"Mercado"]
[null,"Total",{"$nulls":4},{"$f":"SUBTOTAL(109,Gastos_Mensuales[Precio \n(suma)])","v":{"v":146.2,"d":"$146.20"}}]

{"sheet":"Informe","index":1,"n_rows":29,"n_cols":6,"rows_kept":29,"merged":[[0,1,0,7],[5,1,5,2],[18,1,18,2]]}
[null,"Comprueba tus gastos en un período determinado. "]
[]
[null,"Día de inicio",{"$f":"TODAY()-1","v":"2019-03-13"},null,"Día final",{"$f":"TODAY()","v":"2019-03-14"}]
[]
[]
[null,"Gastos por categoría de alimentos"]
[]
[null,"Categoría de alimentos","Gastos"]
[null,"Alcohol",{"$f":"SUMIFS(Gastos_Mensuales[Precio \n(suma)],Gastos_Mensuales[Fecha],\">=\"&Fecha_inicial,Gastos_Mensuales[Fecha],\"<=\"&Fecha_final,Gastos_Mensuales[Categoría],Gastos_Por_Cát_Alimentos[[#This Row],[Categoría de alimentos]])","v":{"v":25,"d":"$25.00"}}]
[null,"Pan",{"$f":"SUMIFS(Gastos_Mensuales[Precio \n(suma)],Gastos_Mensuales[Fecha],\">=\"&Fecha_inicial,Gastos_Mensuales[Fecha],\"<=\"&Fecha_final,Gastos_Mensuales[Categoría],Gastos_Por_Cát_Alimentos[[#This Row],[Categoría de alimentos]])","v":{"v":0,"d":"$0.00"}}]
[null,"Bebidas",{"$f":"SUMIFS(Gastos_Mensuales[Precio \n(suma)],Gastos_Mensuales[Fecha],\">=\"&Fecha_inicial,Gastos_Mensuales[Fecha],\"<=\"&Fecha_final,Gastos_Mensuales[Categoría],Gastos_Por_Cát_Alimentos[[#This Row],[Categoría de alimentos]])","v":{"v":1,"d":"$1.00"}}]
[null,"Frutas y verduras",{"$f":"SUMIFS(Gastos_Mensuales[Precio \n(suma)],Gastos_Mensuales[Fecha],\">=\"&Fecha_inicial,Gastos_Mensuales[Fecha],\"<=\"&Fecha_final,Gastos_Mensuales[Categoría],Gastos_Por_Cát_Alimentos[[#This Row],[Categoría de alimentos]])","v":{"v":0,"d":"$0.00"}}]
[null,"Carne",{"$f":"SUMIFS(Gastos_Mensuales[Precio \n(suma)],Gastos_Mensuales[Fecha],\">=\"&Fecha_inicial,Gastos_Mensuales[Fecha],\"<=\"&Fecha_final,Gastos_Mensuales[Categoría],Gastos_Por_Cát_Alimentos[[#This Row],[Categoría de alimentos]])","v":{"v":18,"d":"$18.00"}}]
[null,"Comidas preparadas",{"$f":"SUMIFS(Gastos_Mensuales[Precio \n(suma)],Gastos_Mensuales[Fecha],\">=\"&Fecha_inicial,Gastos_Mensuales[Fecha],\"<=\"&Fecha_final,Gastos_Mensuales[Categoría],Gastos_Por_Cát_Alimentos[[#This Row],[Categoría de alimentos]])","v":{"v":28,"d":"$28.00"}}]
[null,"Golosinas",{"$f":"SUMIFS(Gastos_Mensuales[Precio \n(suma)],Gastos_Mensuales[Fecha],\">=\"&Fecha_inicial,Gastos_Mensuales[Fecha],\"<=\"&Fecha_final,Gastos_Mensuales[Categoría],Gastos_Por_Cát_Alimentos[[#This Row],[Categoría de alimentos]])","v":{"v":1.5,"d":"$1.50"}}]
[null,"Otros",{"$f":"SUMIFS(Gastos_Mensuales[Precio \n(suma)],Gastos_Mensuales[Fecha],\">=\"&Fecha_inicial,Gastos_Mensuales[Fecha],\"<=\"&Fecha_final,Gastos_Mensuales[Categoría],Gastos_Por_Cát_Alimentos[[#This Row],[Categoría de alimentos]])","v":{"v":0,"d":"$0.00"}}]
[null,"Total",{"$f":"SUBTOTAL(109,Gastos_Por_Cát_Alimentos[Gastos])","v":{"v":73.5,"d":"$73.50"}}]
[]
[null,"Gastos por lugar"]
[]
[null,"Lista de lugares","Gastos"]
[null,"Supermercado",{"$f":"SUMIFS(Gastos_Mensuales[Precio \n(suma)],Gastos_Mensuales[Fecha],\">=\"&Fecha_inicial,Gastos_Mensuales[Fecha],\"<=\"&Fecha_final,Gastos_Mensuales[Dónde],Gastos_por_lugar[[#This Row],[Lista de lugares]])","v":{"v":0,"d":"$0.00"}}]
[null,"Cafeterías",{"$f":"SUMIFS(Gastos_Mensuales[Precio \n(suma)],Gastos_Mensuales[Fecha],\">=\"&Fecha_inicial,Gastos_Mensuales[Fecha],\"<=\"&Fecha_final,Gastos_Mensuales[Dónde],Gastos_por_lugar[[#This Row],[Lista de lugares]])","v":{"v":0,"d":"$0.00"}}]
[null,"Comida rápida",{"$f":"SUMIFS(Gastos_Mensuales[Precio \n(suma)],Gastos_Mensuales[Fecha],\">=\"&Fecha_inicial,Gastos_Mensuales[Fecha],\"<=\"&Fecha_final,Gastos_Mensuales[Dónde],Gastos_por_lugar[[#This Row],[Lista de lugares]])","v":{"v":29,"d":"$29.00"}}]
[null,"Mercado",{"$f":"SUMIFS(Gastos_Mensuales[Precio \n(suma)],Gastos_Mensuales[Fecha],\">=\"&Fecha_inicial,Gastos_Mensuales[Fecha],\"<=\"&Fecha_final,Gastos_Mensuales[Dónde],Gastos_por_lugar[[#This Row],[Lista de lugares]])","v":{"v":44.5,"d":"$44.50"}}]
[null,"Entrega a domicilio",{"$f":"SUMIFS(Gastos_Mensuales[Precio \n(suma)],Gastos_Mensuales[Fecha],\">=\"&Fecha_inicial,Gastos_Mensuales[Fecha],\"<=\"&Fecha_final,Gastos_Mensuales[Dónde],Gastos_por_lugar[[#This Row],[Lista de lugares]])","v":{"v":0,"d":"$0.00"}}]
[null,"Restaurante",{"$f":"SUMIFS(Gastos_Mensuales[Precio \n(suma)],Gastos_Mensuales[Fecha],\">=\"&Fecha_inicial,Gastos_Mensuales[Fecha],\"<=\"&Fecha_final,Gastos_Mensuales[Dónde],Gastos_por_lugar[[#This Row],[Lista de lugares]])","v":{"v":0,"d":"$0.00"}}]
[null,"Otros",{"$f":"SUMIFS(Gastos_Mensuales[Precio \n(suma)],Gastos_Mensuales[Fecha],\">=\"&Fecha_inicial,Gastos_Mensuales[Fecha],\"<=\"&Fecha_final,Gastos_Mensuales[Dónde],Gastos_por_lugar[[#This Row],[Lista de lugares]])","v":{"v":0,"d":"$0.00"}}]
[null,"Total",{"$f":"SUBTOTAL(109,Gastos_por_lugar[Gastos])","v":{"v":73.5,"d":"$73.50"}}]